bitfinex/quotes_SOLUSD_20250612
["timestamp","ask_amount","ask_price","bid_price","bid_amount"]
[1749764248553,6.53167864,153.1,153.06,20.46276762]
[1749764248748,6.53167864,153.1,153.07,20.46276762]
[1749764249168,6.53167864,153.1,153.08,20.46276762]
[1749764250673,43.32147781,153.12,153.07,20.46276762]
[1749764251175,22.85871019,153.12,153.08,20.46276762]
[1749764253067,6.53082549,153.12,153.09,20.46276762]
[1749764253683,6.52997257,153.14,153.11,20.46276762]
[1749764254383,6.52997257,153.14,153.12,20.46276762]
[1749764254564,62.78453121,153.17,153.12,20.46276762]
[1749764254565,6.52911987,153.16,153.12,20.46276762]
[1749764254764,6.52911987,153.16,153.14,20.46276762]
[1749764255155,6.52911987,153.16,153.13,20.46276762]
[1749764255864,26.99146122,153.17,153.12,20.46276762]
[1749764256049,20.46276762,153.14,153.09,6.6]
[1749764256261,20.46276762,153.13,153.09,27.06276762]
[1749764257281,20.46276762,153.14,153.09,27.06276762]
[1749764258154,6.530399,153.13,153.09,27.06276762]
[1749764258954,6.530399,153.13,153.1,20.46276762]
[1749764260164,6.52997257,153.14,153.1,20.46276762]
[1749764264882,43.31697626,153.15,153.1,20.46276762]
[1749764265277,43.31697626,153.15,153.09,6.6]
[1749764265585,43.31697626,153.15,153.1,20.46276762]
[1749764265991,22.85420864,153.15,153.1,20.46276762]
[1749764266282,22.85420864,153.15,153.09,6.6]
[1749764266485,22.85420864,153.15,153.11,20.46276762]
[1749764267082,43.31697626,153.15,153.1,0.14216157]
[1749764267285,43.31697626,153.15,153.1,20.60492919]
[1749764268091,22.85420864,153.15,153.1,20.60492919]
[1749764268462,16.32129575,153.18,153.12,20.46276762]
[1749764268662,36.78406337,153.18,153.13,20.46276762]
[1749764269093,6.52784124,153.19,153.14,20.46276762]
[1749764269397,11.34182171,153.19,153.16,20.46276762]
[1749764269689,4.81398047,153.2,153.17,20.46276762]
[1749764269889,6.52743863,153.2,153.17,20.46276762]
[1749764270096,6.52698909,153.21,153.17,20.46276762]
[1749764270660,6.52698909,153.21,153.15,28.04]
[1749764270887,6.52698909,153.21,153.17,20.46276762]
[1749764271070,6.52698909,153.21,153.18,20.60492919]
[1749764271271,4.81398047,153.22,153.19,20.46276762]
[1749764271469,11.34042983,153.23,153.19,27.00276762]
[1749764271880,6.52644936,153.23,153.19,27.00276762]
[1749764272076,6.52644936,153.23,153.21,20.46276762]
[1749764272285,11.33942287,153.25,153.22,20.46276762]
[1749764272497,6.5254424,153.25,153.22,20.46276762]
[1749764272699,6.5254424,153.25,153.23,20.46276762]
[1749764272993,6.5254424,153.25,153.22,20.46276762]
[1749764273768,6.5254424,153.25,153.19,34.56]
[1749764274095,6.5254424,153.25,153.22,20.46276762]
[1749764274395,14.85835547,153.26,153.21,0.14216157]
[1749764274592,20.46276762,153.24,153.2,0.14216157]
[1749764274770,20.46276762,153.25,153.2,20.60492919]
[1749764275514,20.46276762,153.21,153.19,6.54]
[1749764275815,20.46276762,153.2,153.19,6.54]
[1749764276291,25.28266092,153.21,153.19,6.54]
[1749764276591,31.81007606,153.2,153.19,6.54]
[1749764277787,17.37305326,153.2,153.19,6.54]
[1749764277974,31.81007606,153.2,153.19,6.54]
[1749764279674,37.83582088,153.2,153.19,6.54]
[1749764283778,31.81007606,153.2,153.19,6.54]
[1749764285380,11.34730844,153.2,153.19,6.54]
[1749764285584,31.81007606,153.2,153.19,6.54]
[1749764293209,11.34730844,153.2,153.19,6.54]
[1749764293616,6.52741514,153.2,153.19,6.54]
[1749764294596,11.38475345,153.21,153.19,6.54]
[1749764294801,6.52699256,153.21,153.19,6.54]
[1749764294993,11.38475345,153.21,153.19,6.54]
[1749764295211,6.52699256,153.21,153.19,6.54]
[1749764295390,11.38475345,153.21,153.19,6.54]
[1749764295586,6.52699256,153.21,153.19,6.54]
[1749764295791,11.38475345,153.21,153.19,6.54]
[1749764296018,6.52699256,153.21,153.19,6.54]
[1749764296324,11.38475345,153.21,153.19,6.54]
[1749764296493,6.52699256,153.21,153.19,6.54]
[1749764296688,11.38475345,153.21,153.19,6.54]
[1749764296928,11.38441937,153.22,153.19,6.54]
[1749764297108,4.85776089,153.21,153.19,6.54]
[1749764297720,11.38441937,153.22,153.19,6.54]
[1749764297916,11.38441937,153.22,153.19,27.00276762]
[1749764298413,6.52613717,153.23,153.2,20.46276762]
[1749764298718,11.38907859,153.23,153.19,27.00276762]
[1749764299096,4.86294142,153.22,153.19,27.00276762]
[1749764299298,14.85834896,153.26,153.22,0.14216157]
[1749764299618,14.85834896,153.26,153.23,20.46276762]
[1749764299798,19.72050813,153.26,153.23,20.46276762]
[1749764300126,14.85834896,153.26,153.23,20.46276762]
[1749764300495,14.85834896,153.26,153.22,22.18462919]
[1749764301612,14.85834896,153.26,153.23,20.46276762]
[1749764302118,8.33333333,153.26,153.23,20.46276762]
[1749764304535,26.0,153.21,153.18,18.64964886]
[1749764304833,26.0,153.23,153.18,0.14216157]
[1749764305129,20.46276762,153.22,153.17,20.46276762]
[1749764305495,26.0,153.23,153.16,8.7984]
[1749764305701,20.46276762,153.19,153.16,7.24]
[1749764306004,26.0,153.17,153.16,7.24]
[1749764306311,32.5286936,153.17,153.16,7.24]
[1749764306906,52.99146122,153.17,153.16,7.24]
[1749764307600,57.85232137,153.17,153.16,7.24]
[1749764307826,74.17405539,153.17,153.08,8.83]
[1749764308018,46.46276762,153.13,153.08,29.29276762]
[1749764308219,46.46276762,153.13,153.08,8.83]
[1749764308419,6.53082549,153.12,153.08,29.29276762]
[1749764308615,6.53082549,153.12,153.08,27.70276762]
[1749764308856,6.53082549,153.12,153.08,7.24]
[1749764308857,26.99359311,153.12,153.08,7.24]
[1749764310733,20.46276762,153.1,153.08,7.24]
[1749764311931,46.46276762,153.1,153.08,7.24]
[1749764312112,26.0,153.1,153.08,7.24]
[1749764312315,20.46276762,153.09,153.08,7.24]
[1749764312630,26.99487291,153.09,153.08,7.24]
[1749764313718,26.0,153.06,153.01,1.5234]
[1749764313908,20.46276762,153.04,153.01,1.5234]
[1749764314130,20.46276762,153.04,153.01,0.14216157]
[1749764314932,26.99727344,153.04,153.0,7.24]
[1749764315142,6.53450582,153.04,153.0,7.24]
[1749764315521,6.53450582,153.04,153.01,0.14216157]
[1749764316126,26.99727344,153.04,153.0,7.24]
[1749764316938,26.99822001,153.02,153.0,7.24]
[1749764321740,32.53381247,153.05,153.01,20.46276762]
[1749764321947,32.53381247,153.05,153.0,7.24]
[1749764322127,32.53381247,153.05,153.01,20.46276762]
[1749764323542,26.0,153.05,153.02,20.46276762]
[1749764323750,6.53354534,153.06,153.02,20.46276762]
[1749764324539,26.99631296,153.06,153.01,0.14216157]
[1749764324744,26.99631296,153.06,153.02,20.46276762]
[1749764325044,26.99631296,153.06,153.01,20.60492919]
[1749764325860,6.53354534,153.06,153.01,20.60492919]
[1749764326032,6.53354534,153.06,153.02,20.46276762]
[1749764326350,6.53354534,153.06,153.01,0.14216157]
[1749764326521,26.99631296,153.06,153.01,20.60492919]
[1749764328551,6.53354534,153.06,153.01,20.60492919]
[1749764328761,26.99631296,153.06,153.01,20.60492919]
[1749764329756,26.99631296,153.06,153.02,20.46276762]
[1749764331268,6.53354534,153.06,153.02,20.46276762]
[1749764331759,26.0,153.07,153.04,20.46276762]
[1749764331942,6.53284035,153.08,153.01,0.14216157]
[1749764332260,26.99560797,153.08,153.04,20.46276762]
[1749764333163,26.99560797,153.08,153.03,20.46276762]
[1749764335362,6.53284035,153.08,153.04,20.46276762]
[1749764335863,6.53223012,153.09,153.05,20.46276762]
[1749764336043,26.0,153.1,153.07,20.46276762]
[1749764336438,26.0,153.1,153.08,20.46276762]
[1749764336635,26.0,153.1,153.07,20.46276762]
[1749764337361,26.0,153.1,153.05,107.14964886]
[1749764337559,26.0,153.1,153.07,20.46276762]
[1749764339938,32.53170235,153.1,153.07,20.46276762]
[1749764340142,20.46276762,153.12,153.05,107.14964886]
[1749764340340,20.46276762,153.11,153.07,0.14216157]
[1749764340546,6.53167864,153.1,153.07,0.14216157]
[1749764340853,26.99444626,153.1,153.06,29.02]
[1749764341167,26.99444626,153.1,153.05,88.5]
[1749764341366,20.46276762,153.07,153.02,20.46276762]
[1749764341542,20.46276762,153.07,153.01,30.66576157]
[1749764341742,20.46276762,153.07,153.02,20.60492919]
[1749764341958,20.46276762,153.06,153.01,21.96636762]
[1749764342251,20.46276762,153.07,153.02,20.46276762]
[1749764342763,6.5333856,153.06,153.02,20.46276762]
[1749764343248,26.99615322,153.06,153.01,1.5036]
[1749764343447,20.46276762,153.05,153.0,56.68276762]
[1749764344062,46.46276762,153.03,153.0,7.24]
[1749764344280,26.0,153.03,153.0,7.24]
[1749764344571,46.46276762,153.03,153.0,7.24]
[1749764344747,6.53509345,153.02,153.0,7.24]
[1749764344947,26.99786107,153.02,153.0,7.24]
[1749764345171,20.46276762,153.01,153.0,7.24]
[1749764345691,26.0,152.98,152.92,7.14]
[1749764345853,46.46276762,152.98,152.93,20.46276762]
[1749764346174,46.46276762,152.98,152.92,7.14]
[1749764346412,46.46276762,152.98,152.93,20.46276762]
[1749764346875,6.53722952,152.97,152.93,20.46276762]
[1749764347648,6.53722952,152.97,152.94,20.46276762]
[1749764348847,6.53722952,152.97,152.92,7.14]
[1749764349046,6.53722952,152.97,152.93,20.46276762]
[1749764349448,6.53722952,152.97,152.92,7.14]
[1749764349649,26.99999714,152.97,152.92,7.14]
[1749764349875,26.99999714,152.97,152.92,27.60276762]
[1749764350390,26.99999714,152.97,152.92,7.14]
[1749764350560,26.99999714,152.97,152.92,27.60276762]
[1749764350884,26.99999714,152.97,152.92,7.14]
[1749764351058,26.99999714,152.97,152.92,27.60276762]
[1749764351954,20.46276762,152.96,152.92,7.14]
[1749764352278,26.99999714,152.97,152.92,27.60276762]
[1749764352460,26.99999714,152.97,152.92,7.14]
[1749764352663,20.46276762,152.96,152.92,7.14]
[1749764352985,20.46276762,152.93,152.92,7.14]
[1749764354084,20.46276762,152.93,152.86,20.46276762]
[1749764354380,27.6624,152.95,152.85,22.03456762]
[1749764354381,18.64964886,152.94,152.85,22.03456762]
[1749764354553,26.0,152.93,152.85,1.5718]
[1749764354750,26.0,152.93,152.87,20.46276762]
[1749764354974,26.0,152.93,152.85,1.5718]
[1749764354975,6.53936698,152.92,152.85,1.5718]
[1749764355167,20.46276762,152.91,152.85,1.5718]
[1749764355361,20.46276762,152.91,152.86,20.46276762]
[1749764355556,20.46276762,152.9,152.85,22.03456762]
[1749764355755,20.46276762,152.91,152.86,20.46276762]
[1749764356081,6.54022236,152.9,152.85,1.5718]
[1749764356280,6.54022236,152.9,152.86,20.46276762]
[1749764357079,6.54022236,152.9,152.85,1.5718]
[1749764357282,6.54022236,152.9,152.86,20.46276762]
[1749764357583,27.00298998,152.9,152.85,1.5718]
[1749764357768,27.00298998,152.9,152.85,22.03456762]
[1749764357969,27.00298998,152.9,152.85,1.5718]
[1749764358176,27.00298998,152.9,152.85,22.03456762]
[1749764359685,26.0,152.89,152.85,22.03456762]
[1749764359860,26.0,152.89,152.85,20.46276762]
[1749764360317,46.46276762,152.89,152.85,0.14216157]
[1749764360787,46.46276762,152.89,152.84,72.74276762]
[1749764361152,20.46276762,152.88,152.84,52.28]
[1749764361574,20.46276762,152.87,152.84,7.14]
[1749764361779,6.54193379,152.86,152.84,7.14]
[1749764362167,27.00470141,152.86,152.84,7.14]
[1749764362383,20.46276762,152.85,152.84,7.14]
[1749764362869,46.46276762,152.85,152.84,7.14]
[1749764364193,53.00512941,152.85,152.84,7.14]
[1749764364995,69.36103389,152.85,152.76,18.79181043]
[1749764365209,20.46276762,152.83,152.77,20.46276762]
[1749764365380,20.46276762,152.82,152.77,20.46276762]
[1749764365781,20.46276762,152.83,152.77,20.46276762]
[1749764366194,6.54364611,152.82,152.77,20.46276762]
[1749764366393,6.54364611,152.82,152.76,0.14216157]
[1749764366593,6.54364611,152.82,152.77,20.46276762]
[1749764367104,26.0,152.79,152.69,1.5044]
[1749764367311,26.0,152.79,152.7,7.06]
[1749764367479,46.46276762,152.79,152.73,20.46276762]
[1749764367885,26.0,152.79,152.7,7.06]
[1749764368213,6.54578778,152.77,152.73,20.46276762]
[1749764368584,27.0085554,152.77,152.7,7.06]
[1749764368783,27.0085554,152.77,152.72,20.46276762]
[1749764369194,20.46276762,152.76,152.7,7.06]
[1749764369397,22.91025724,152.77,152.7,7.06]
[1749764369600,46.46276762,152.74,152.7,7.06]
[1749764369802,6.54578778,152.77,152.73,20.46276762]
[1749764369991,27.0085554,152.77,152.72,20.46276762]
[1749764370985,27.0085554,152.77,152.71,0.14216157]
[1749764371310,27.0085554,152.77,152.72,20.46276762]
[1749764371879,6.54578778,152.77,152.7,27.52276762]
[1749764372088,20.46276762,152.76,152.71,20.46276762]
[1749764372296,27.00941246,152.75,152.7,7.06]
[1749764372481,6.54578778,152.77,152.7,7.06]
[1749764372684,6.54578778,152.77,152.72,20.46276762]
[1749764372899,27.0085554,152.77,152.72,20.46276762]
[1749764373117,6.54578778,152.77,152.7,7.06]
[1749764373414,20.46276762,152.76,152.71,20.46276762]
[1749764373623,20.46276762,152.77,152.72,20.46276762]
[1749764373820,32.54550318,152.78,152.72,20.46276762]
[1749764373983,36.57170329,152.82,152.7,7.06]
[1749764373984,26.0,152.76,152.74,20.46276762]
[1749764374185,36.57170329,152.82,152.74,20.46276762]
[1749764374492,26.0,152.78,152.73,0.14216157]
[1749764375618,26.0,152.78,152.74,20.46276762]
[1749764376013,26.0,152.78,152.73,0.14216157]
[1749764376317,26.0,152.78,152.74,20.46276762]
[1749764376823,26.0,152.78,152.73,0.14216157]
[1749764377116,26.0,152.78,152.74,20.46276762]
[1749764377313,26.0,152.78,152.75,20.46276762]
[1749764377685,26.0,152.78,152.74,20.46276762]
[1749764379403,26.0,152.78,152.73,0.14216157]
[1749764379593,46.46276762,152.78,152.73,20.60492919]
[1749764379923,53.00836722,152.78,152.72,20.46276762]
[1749764380599,20.46276762,152.77,152.72,0.14216157]
[1749764380822,32.5455996,152.78,152.72,20.60492919]
[1749764381003,20.46276762,152.77,152.72,20.60492919]
[1749764381207,20.46276762,152.77,152.72,0.14216157]
[1749764381524,20.46276762,152.77,152.72,20.60492919]
[1749764382018,27.00874864,152.77,152.72,20.60492919]
[1749764382187,6.54598102,152.77,152.72,0.14216157]
[1749764382386,6.54598102,152.77,152.72,20.60492919]
[1749764382616,27.00874864,152.77,152.72,20.60492919]
[1749764382810,6.54598102,152.77,152.72,20.60492919]
[1749764383110,27.00874864,152.77,152.72,20.60492919]
[1749764383328,27.00874864,152.77,152.72,0.14216157]
[1749764383491,20.46276762,152.75,152.69,20.46276762]
[1749764383899,46.46276762,152.74,152.69,20.46276762]
[1749764384211,46.46276762,152.74,152.67,29.12]
[1749764384212,26.0,152.74,152.71,20.46276762]
[1749764386398,28.62629212,152.77,152.72,20.46276762]
[1749764386593,27.00737254,152.8,152.74,20.46276762]
[1749764386810,31.91271255,152.81,152.76,20.46276762]
[1749764387018,31.91271255,152.81,152.68,61.02330289]
[1749764387019,26.0,152.74,152.65,3.88644631]
[1749764387319,26.0,152.74,152.66,20.46276762]
[1749764387320,26.0,152.73,152.66,20.46276762]
[1749764387532,27.01069847,152.72,152.66,20.46276762]
[1749764387693,6.54793085,152.72,152.67,20.46276762]
[1749764388086,26.0,152.72,152.7,20.46276762]
[1749764388289,7.8158,152.77,152.71,20.46276762]
[1749764388494,6.54450261,152.8,152.75,20.46276762]
[1749764388725,6.54450261,152.8,152.72,29.08]
[1749764388726,1.5797,152.81,152.76,20.46276762]
[1749764388933,20.46276762,152.82,152.77,20.46276762]
[1749764389093,6.54321795,152.83,152.76,7.08]
[1749764389530,6.54401493,152.82,152.78,20.46276762]
[1749764389734,6.54401493,152.82,152.77,0.14216157]
[1749764390222,6.54401493,152.82,152.78,20.46276762]
[1749764390898,6.54337538,152.83,152.78,20.46276762]
[1749764391228,53.0056294,152.84,152.79,20.46276762]
[1749764391529,27.0056294,152.84,152.79,20.46276762]
[1749764391828,26.0,152.83,152.79,20.46276762]
[1749764393636,32.54322722,152.83,152.79,20.46276762]
[1749764393937,26.0,152.83,152.77,29.48216157]
[1749764394094,26.0,152.82,152.8,20.46276762]
[1749764395027,6.54193379,152.86,152.81,20.46276762]
[1749764395237,37.37692678,152.86,152.82,20.46276762]
[1749764395439,4.83499299,152.85,152.79,0.14216157]
[1749764395740,11.37695516,152.86,152.79,0.14216157]
[1749764395905,11.37695516,152.86,152.82,20.46276762]
[1749764396101,11.37695516,152.86,152.79,0.14216157]
[1749764396328,11.37695516,152.86,152.82,20.46276762]
[1749764397127,31.83972278,152.86,152.81,20.46276762]
[1749764397735,4.83499299,152.85,152.81,20.46276762]
[1749764397937,31.8507536,152.86,152.81,20.46276762]
[1749764398837,27.00472979,152.86,152.81,20.46276762]
[1749764399006,31.85328722,152.86,152.81,20.46276762]
[1749764399212,20.46276762,152.84,152.79,20.60492919]
[1749764399443,25.31132505,152.85,152.8,20.46276762]
[1749764399625,20.46276762,152.85,152.8,20.46276762]
[1749764400125,4.84855743,152.86,152.81,20.60492919]
[1749764400324,4.84855743,152.9,152.85,20.46276762]
[1749764400522,4.84855743,152.91,152.86,26.13181043]
[1749764400711,4.84855743,152.93,152.9,20.46276762]
[1749764400913,4.84855743,152.92,152.91,20.60492919]
[1749764401239,4.84855743,152.92,152.89,0.14216157]
[1749764401240,57.84948989,152.95,152.89,0.14216157]
[1749764401451,20.46276762,152.93,152.87,29.38]
[1749764401613,20.46276762,152.92,152.87,49.84276762]
[1749764401811,4.84921208,152.94,152.87,0.14216157]
[1749764401812,20.46276762,152.9,152.87,0.14216157]
[1749764402338,26.0,152.91,152.86,7.34]
[1749764402536,20.46276762,152.9,152.86,7.34]
[1749764402767,20.46276762,152.9,152.86,0.14216157]
[1749764403263,46.46276762,152.92,152.87,20.46276762]
[1749764403566,27.00142159,152.94,152.88,20.60492919]
[1749764403751,27.00142159,152.94,152.89,20.46276762]
[1749764403956,57.84829577,152.95,152.9,20.46276762]
[1749764404153,27.00053215,152.96,152.91,20.46276762]
[1749764404874,31.84747326,152.96,152.91,20.46276762]
[1749764405376,31.84747326,152.96,152.89,0.14216157]
[1749764405377,42.15673182,152.96,152.89,29.46216157]
[1749764405564,37.30979071,152.96,152.91,30.77202618]
[1749764405878,37.30979071,152.96,152.89,29.46216157]
[1749764406051,30.77202618,152.95,152.91,30.77202618]
[1749764407174,30.77202618,152.95,152.89,29.46216157]
[1749764407477,6.53837822,152.95,152.9,30.77202618]
[1749764407641,32.53837822,152.95,152.9,30.77202618]
[1749764408044,32.53837822,152.95,152.88,0.14216157]
[1749764408045,30.77202618,152.93,152.88,0.14216157]
[1749764408252,26.0,152.92,152.86,95.84]
[1749764408451,30.77202618,152.9,152.86,7.34]
[1749764408773,30.77202618,152.89,152.86,7.34]
[1749764409366,30.77202618,152.88,152.86,7.34]
[1749764410801,37.31341194,152.88,152.86,7.34]
[1749764415301,6.54138576,152.88,152.86,7.34]
[1749764419214,37.31268793,152.89,152.86,7.34]
[1749764419882,37.31250696,152.9,152.86,7.34]
[1749764420085,6.54048078,152.9,152.86,7.34]
[1749764420391,6.54048078,152.9,152.86,38.11202618]
[1749764421695,30.77202618,152.91,152.86,38.11202618]
[1749764421696,26.0,152.88,152.86,38.11202618]
[1749764422392,26.0,152.88,152.86,7.34]
[1749764424815,63.31197534,152.91,152.86,38.11202618]
[1749764425310,63.31197534,152.91,152.86,27.86992004]
[1749764425311,53.0698692,152.91,152.86,27.86992004]
[1749764426019,27.07026941,152.9,152.86,7.34]
[1749764426317,6.54034937,152.9,152.86,27.86992004]
[1749764428602,53.06998167,152.91,152.86,27.86992004]
[1749764429111,26.0,152.87,152.86,7.34]
[1749764429816,46.52992004,152.87,152.86,7.34]
[1749764431098,53.07142589,152.87,152.86,7.34]
[1749764431494,32.54150585,152.87,152.86,7.34]
[1749764431688,53.07142589,152.87,152.86,7.34]
[1749764432391,53.07142589,152.87,152.82,20.52992004]
[1749764432611,53.07142589,152.87,152.82,27.66992004]
[1749764433298,53.07142589,152.87,152.82,7.14]
[1749764433609,32.54150585,152.87,152.83,20.67208161]
[1749764435411,32.54150585,152.87,152.83,0.14216157]
[1749764435717,32.54150585,152.87,152.83,20.67208161]
[1749764435913,6.00012538,152.92,152.85,20.52992004]
[1749764436120,26.0,152.9,152.85,20.52992004]
[1749764436298,4.87441515,152.89,152.86,20.52992004]
[1749764436508,4.87441515,152.89,152.85,20.67208161]
[1749764436809,26.0,152.9,152.85,20.67208161]
[1749764437195,26.0,152.9,152.86,20.52992004]
[1749764437612,4.87694221,152.89,152.86,20.52992004]
[1749764438530,30.87688206,152.9,152.88,20.67208161]
[1749764438824,26.0,152.9,152.89,20.52992004]
[1749764439699,26.0,152.91,152.89,20.52992004]
[1749764439903,4.87913879,152.93,152.9,20.52992004]
[1749764440198,4.87890069,152.94,152.92,20.52992004]
[1749764440427,4.87846832,152.94,152.92,27.66992004]
[1749764440662,4.87729235,152.95,152.93,20.52992004]
[1749764440871,6.53778086,152.96,152.93,20.52992004]
[1749764441056,4.87796839,152.95,152.92,27.66992004]
[1749764441234,8.98192884,152.96,152.92,27.66992004]
[1749764441434,4.87795077,152.95,152.92,27.66992004]
[1749764441635,8.98192884,152.96,152.92,27.66992004]
[1749764441860,4.87720656,152.95,152.92,27.66992004]
[1749764443434,6.53778086,152.96,152.92,27.66992004]
[1749764443858,8.98185932,152.96,152.92,27.66992004]
[1749764444041,6.53778086,152.96,152.92,27.66992004]
[1749764444250,4.87638082,152.95,152.92,27.66992004]
[1749764444557,11.4145088,152.95,152.92,27.66992004]
[1749764444757,27.06804802,152.95,152.92,7.14]
[1749764445162,4.87748109,152.94,152.92,7.14]
[1749764445379,25.40740113,152.94,152.92,7.14]
[1749764445663,51.40740992,152.93,152.92,7.14]
[1749764446364,6.53936698,152.92,152.88,27.66992004]
[1749764446568,11.41685686,152.92,152.88,27.66992004]
[1749764447246,27.06928702,152.92,152.88,7.14]
[1749764447554,31.94763485,152.92,152.88,7.14]
[1749764447865,20.52992004,152.91,152.88,7.14]
[1749764448274,26.0,152.89,152.88,7.14]
[1749764448577,32.54065014,152.89,152.88,7.14]
[1749764449237,34.99055899,152.89,152.88,7.14]
[1749764449442,32.54065014,152.89,152.88,7.14]
[1749764449671,34.99054217,152.89,152.88,7.14]
[1749764449846,32.54065014,152.89,152.88,7.14]
[1749764450040,53.07057018,152.89,152.81,7.14]
[1749764450348,20.52992004,152.88,152.83,20.67208161]
[1749764450549,6.54150585,152.87,152.83,20.67208161]
[1749764451552,6.54150585,152.87,152.83,0.14216157]
[1749764451772,6.54150585,152.87,152.83,20.67208161]
[1749764453878,6.54150585,152.87,152.83,0.14216157]
[1749764454056,6.54150585,152.87,152.83,20.67208161]
[1749764455575,6.54150585,152.87,152.83,0.14216157]
[1749764455761,6.54150585,152.87,152.83,20.67208161]
[1749764457985,6.54150585,152.87,152.83,0.14216157]
[1749764458165,6.54150585,152.87,152.83,20.67208161]
[1749764461866,6.54150585,152.87,152.84,6.84]
[1749764463499,5.54150585,152.87,152.84,6.84]
[1749764463900,20.52992004,152.85,152.73,26.36864496]
[1749764464074,21.89527048,152.87,152.79,20.52992004]
[1749764464075,20.52992004,152.84,152.79,20.52992004]
[1749764464271,20.52992004,152.83,152.78,39.1795689]
[1749764464467,20.52992004,152.83,152.79,0.14216157]
[1749764464694,20.52992004,152.84,152.79,0.14216157]
[1749764464899,6.54321795,152.83,152.79,0.14216157]
[1749764466274,6.54321795,152.83,152.79,20.67208161]
[1749764466472,6.54321795,152.83,152.79,49.07208161]
[1749764467493,6.54321795,152.83,152.79,28.54216157]
[1749764467793,6.54321795,152.83,152.79,49.07208161]
[1749764468690,6.54321795,152.83,152.79,28.54216157]
[1749764468881,6.54321795,152.83,152.79,49.07208161]
[1749764470094,6.54321795,152.83,152.79,137.57208161]
[1749764470978,27.0728483,152.84,152.79,137.57208161]
[1749764471713,26.0,152.86,152.81,0.14216157]
[1749764471714,6.54249479,152.85,152.81,0.14216157]
[1749764471873,26.0,152.86,152.82,20.52992004]
[1749764472073,2.44953999,152.85,152.82,48.84992004]
[1749764472383,32.54205281,152.86,152.82,48.84992004]
[1749764472580,2.44956854,152.85,152.83,6.84]
[1749764472784,26.0,152.86,152.83,6.84]
[1749764473007,26.0,152.86,152.83,27.36992004]
[1749764473895,25.09193179,152.92,152.83,27.36992004]
[1749764473896,6.00012538,152.91,152.86,18.64964886]
[1749764474126,6.00012538,152.99,152.92,0.14216157]
[1749764474300,4.8714211,153.03,152.98,20.52992004]
[1749764474599,26.0,152.99,152.98,28.3]
[1749764474799,20.52992004,153.02,152.98,28.3]
[1749764475173,53.06503477,153.02,152.98,28.3]
[1749764475390,20.52992004,152.99,152.93,35.14]
[1749764475596,20.52992004,152.97,152.93,35.14]
[1749764476204,46.52992004,152.98,152.93,35.14]
[1749764476500,20.52992004,152.97,152.93,35.2]
[1749764476670,20.52992004,152.98,152.93,35.2]
[1749764476992,6.53722952,152.97,152.93,35.2]
[1749764479092,20.52992004,152.97,152.93,35.2]
[1749764479285,42.34215709,152.98,152.93,6.84]
[1749764479492,20.52992004,152.96,152.93,6.84]
[1749764479904,42.34215709,152.98,152.93,6.84]
[1749764479905,26.0,152.95,152.93,6.84]
[1749764481310,20.52992004,152.96,152.93,6.84]
[1749764482512,6.53808434,152.95,152.93,6.84]
[1749764483217,43.41321523,152.95,152.92,6.84]
[1749764483691,22.88329519,152.95,152.92,6.84]
[1749764484194,20.52992004,152.94,152.92,6.84]
[1749764484701,6.53893938,152.93,152.92,6.84]
[1749764485597,27.06885942,152.93,152.92,6.84]
[1749764490715,29.50928543,152.93,152.92,6.84]
[1749764490917,29.50928536,152.93,152.92,6.84]
[1749764491100,27.06885942,152.93,152.92,6.84]
[1749764491917,48.15768465,152.93,152.92,6.84]
[1749764492118,26.0,152.9,152.81,20.52992004]
[1749764492294,20.52992004,152.83,152.82,6.72]
[1749764493094,27.07313799,152.83,152.82,6.72]
[1749764493503,20.52992004,152.83,152.82,6.72]
[1749764493713,26.0,152.83,152.82,6.72]
[1749764494099,16.35356459,152.88,152.82,6.72]
[1749764494100,6.54199045,152.86,152.82,6.72]
[1749764494303,20.52992004,152.85,152.82,6.72]
[1749764495108,46.52992004,152.86,152.82,6.72]
[1749764496005,26.0,152.86,152.83,20.52992004]
[1749764496220,20.52992004,152.9,152.85,20.52992004]
[1749764496420,6.53987753,152.91,152.86,20.52992004]
[1749764496644,27.06979757,152.91,152.86,20.52992004]
[1749764497022,53.06979757,152.91,152.86,20.52992004]
[1749764497207,20.52992004,152.9,152.85,20.52992004]
[1749764499009,20.52992004,152.89,152.84,28.42]
[1749764499207,20.52992004,152.89,152.84,48.94992004]
[1749764499409,20.52992004,152.89,152.84,28.42]
[1749764499629,20.52992004,152.89,152.84,48.94992004]